bitfinex-derivatives/quotes_BTCF0:USTF0_20250325
["timestamp","ask_amount","ask_price","bid_price","bid_amount"]
[1742924324720,0.00068,88080.0,88079.0,0.0006]
[1742924324721,0.1135081,88080.0,88079.0,0.0006]
[1742924324925,0.1141881,88080.0,88079.0,0.0006]
[1742924325240,0.00068,88080.0,88079.0,0.0006]
[1742924325432,0.06488,88080.0,88079.0,0.0006]
[1742924328721,0.06488,88080.0,88072.0,0.113518]
[1742924328923,0.06488,88080.0,88073.0,0.1135171]
[1742924329123,0.06488,88080.0,88073.0,0.1141171]
[1742924329936,0.06488,88080.0,88073.0,0.0006]
[1742924330532,0.3608,88077.0,88073.0,0.0006]
[1742924330734,0.066,88076.0,88073.0,0.0006]
[1742924331031,0.06668,88076.0,88073.0,0.0006]
[1742924331429,0.06668,88076.0,88069.0,0.0657]
[1742924331624,0.06668,88076.0,88069.0,0.2863]
[1742924333933,0.06668,88076.0,88069.0,0.3998223]
[1742924334133,0.06668,88076.0,88070.0,0.0656]
[1742924334432,0.06668,88076.0,88070.0,0.27628]
[1742924338237,0.0679,88075.0,88070.0,0.27628]
[1742924338433,0.06858,88075.0,88070.0,0.27628]
[1742924338639,0.0674,88074.0,88071.0,0.0698]
[1742924338844,0.0674,88074.0,88071.0,0.07048]
[1742924339143,0.1377,88073.0,88072.0,0.069]
[1742924339933,0.13846,88073.0,88072.0,0.06968]
[1742924340129,0.1377,88073.0,88072.0,0.069]
[1742924340331,0.1377,88073.0,88071.0,0.0698]
[1742924340530,0.0674,88072.0,88071.0,0.0698]
[1742924341046,0.1367,88072.0,88071.0,0.0698]
[1742924341439,0.1367,88072.0,88068.0,0.02128082]
[1742924341751,0.1367,88072.0,88063.0,0.11398412]
[1742924341942,0.1367,88072.0,88066.0,0.0671]
[1742924342135,0.1367,88072.0,88066.0,0.1571]
[1742924342540,0.1367,88072.0,88066.0,0.17910606]
[1742924343851,0.1367,88072.0,88066.0,0.29263196]
[1742924344246,0.1367,88072.0,88066.0,0.17910606]
[1742924344549,0.3608,88067.0,88066.0,0.08910606]
[1742924344746,0.5851249,88067.0,88066.0,0.02200606]
[1742924345048,0.5851249,88067.0,88066.0,0.0006]
[1742924345049,0.5858049,88067.0,88066.0,0.0006]
[1742924345245,0.1135287,88064.0,88063.0,0.00045422]
[1742924345548,0.00068,88064.0,88063.0,0.00105422]
[1742924346747,0.00068,88064.0,88063.0,0.00045422]
[1742924347354,0.00068,88064.0,88063.0,0.02200477]
[1742924349844,0.00068,88064.0,88063.0,0.02260477]
[1742924350046,0.00068,88064.0,88063.0,0.02200477]
[1742924350251,0.00068,88064.0,88063.0,0.00045422]
[1742924350457,0.2631087,88064.0,88063.0,0.00045422]
[1742924350748,0.14958,88064.0,88063.0,0.00045422]
[1742924351051,0.2631087,88064.0,88063.0,0.00045422]
[1742924356743,0.26038,88064.0,88063.0,0.07095422]
[1742924357146,0.26038,88064.0,88063.0,0.07163422]
[1742924357958,0.3739087,88064.0,88063.0,0.07095422]
[1742924358358,0.3739087,88064.0,88063.0,0.14185422]
[1742924359059,0.50974263,88064.0,88063.0,0.14185422]
[1742924366648,0.39621393,88064.0,88063.0,0.14185422]
[1742924366948,0.00068,88064.0,88063.0,0.50538422]
[1742924367153,8e-05,88068.0,88067.0,0.1135249]
[1742924367352,0.00076,88068.0,88067.0,0.3742049]
[1742924367548,0.00068,88068.0,88067.0,0.5204049]
[1742924369762,0.00068,88068.0,88067.0,0.6312049]
[1742924370562,0.00068,88068.0,88067.0,0.40688]
[1742924370858,0.4388,88068.0,88067.0,0.14688]
[1742924371162,0.43948,88068.0,88067.0,0.14688]
[1742924371547,0.6259036,88068.0,88067.0,0.14688]
[1742924371949,0.6259036,88068.0,88067.0,0.07548]
[1742924372156,0.51238,88068.0,88067.0,0.07548]
[1742924372549,0.6259036,88068.0,88067.0,0.00068]
[1742924372754,0.51238,88068.0,88067.0,0.00068]
[1742924373762,0.51238,88068.0,88067.0,0.07608]
[1742924374059,0.6259036,88068.0,88067.0,0.07608]
[1742924374263,0.1135262,88066.0,88065.0,0.00851374]
[1742924374566,0.1135287,88064.0,88063.0,0.00045422]
[1742924374763,0.11412871,88064.0,88063.0,0.00045422]
[1742924375154,0.14920001,88064.0,88063.0,0.00045422]
[1742924375556,0.14920001,88064.0,88063.0,0.00113422]
[1742924376050,0.14920001,88064.0,88063.0,0.00045422]
[1742924376051,0.37352871,88064.0,88063.0,0.00045422]
[1742924376459,0.37352871,88064.0,88063.0,0.00121422]
[1742924376855,0.37352871,88064.0,88063.0,0.00045422]
[1742924377056,0.39349677,88064.0,88063.0,0.00045422]
[1742924377453,0.39349677,88064.0,88063.0,0.00113422]
[1742924377863,0.39349677,88064.0,88047.0,0.0005343]
[1742924377864,0.1135455,88051.0,88047.0,0.0004543]
[1742924378164,0.47494551,88051.0,88050.0,0.0023836]
[1742924378662,0.62984551,88051.0,88050.0,0.0023836]
[1742924378855,0.62984551,88051.0,88050.0,0.00068]
[1742924379058,0.62984551,88051.0,88050.0,0.00168]
[1742924379263,0.62984551,88051.0,88050.0,0.00268]
[1742924379568,0.62984551,88051.0,88050.0,0.002]
[1742924379968,0.62984551,88051.0,88050.0,0.001]
[1742924380169,0.62984551,88051.0,88050.0,0.00068]
[1742924380966,0.99064551,88051.0,88050.0,0.00068]
[1742924381157,0.1135494,88048.0,88047.0,0.0004543]
[1742924381356,0.1141894,88048.0,88047.0,0.0004543]
[1742924381776,0.1141894,88048.0,88047.0,0.0011343]
[1742924381966,0.1141894,88048.0,88047.0,0.0004543]
[1742924385271,0.1135558,88043.0,88042.0,0.00017037]
[1742924385574,0.4749958,88043.0,88042.0,0.00017037]
[1742924386166,0.6248958,88043.0,88042.0,0.00017037]
[1742924391478,0.6248958,88043.0,88042.0,0.07517037]
[1742924395674,0.6248958,88043.0,88042.0,0.00017037]
[1742924403099,0.1135649,88036.0,88035.0,8e-05]
[1742924403286,0.1135674,88034.0,88033.0,8e-05]
[1742924403492,0.1135674,88034.0,88018.0,0.0731]
[1742924403493,0.1135829,88022.0,88021.0,0.0734]
[1742924403687,0.4743829,88022.0,88021.0,0.08799529]
[1742924403887,0.4743829,88022.0,88021.0,0.08799566]
[1742924404088,0.6203829,88022.0,88021.0,0.0734]
[1742924404292,0.6200229,88022.0,88021.0,0.0734]
[1742924404597,0.6190229,88022.0,88021.0,0.07412]
[1742924404798,0.50744,88022.0,88021.0,0.0774]
[1742924404990,0.50744,88022.0,88021.0,0.09206052]
[1742924404991,0.6203829,88022.0,88021.0,0.09206052]
[1742924405186,0.4349,88022.0,88021.0,0.0774]
[1742924405388,0.4349,88022.0,88021.0,0.11692017]
[1742924405998,0.4349,88022.0,88021.0,0.19222017]
[1742924406998,0.5484829,88022.0,88021.0,0.19222017]
[1742924409197,0.5492429,88022.0,88021.0,0.19298017]
[1742924409596,0.43566,88022.0,88021.0,0.19298017]
[1742924410001,0.36156,88022.0,88021.0,0.30656437]
[1742924410205,0.36156,88022.0,88021.0,0.19370017]
[1742924411200,0.36156,88022.0,88021.0,0.30728437]
[1742924411402,0.36156,88022.0,88021.0,0.19370017]
[1742924412407,0.36156,88022.0,88021.0,0.19399054]
[1742924412709,0.36156,88022.0,88021.0,0.43399054]
[1742924413601,0.4751429,88022.0,88021.0,0.43399054]
[1742924413906,0.36156,88022.0,88021.0,0.43399054]
[1742924414107,0.44146,88022.0,88021.0,0.54685474]
[1742924414308,0.36156,88022.0,88021.0,0.54685474]
[1742924414610,0.36156,88022.0,88021.0,0.54757474]
[1742924416400,0.36156,88022.0,88021.0,0.54752988]
[1742924418107,0.36156,88022.0,88021.0,0.43394568]
[1742924418607,0.36156,88022.0,88021.0,0.54752988]
[1742924419606,0.36156,88022.0,88021.0,0.54680988]
[1742924420209,0.36156,88022.0,88021.0,0.54752988]
[1742924420711,0.36156,88022.0,88021.0,0.54767722]
[1742924420917,0.36156,88022.0,88021.0,0.44865858]
[1742924421307,0.36156,88022.0,88021.0,0.56224278]
[1742924421508,0.36156,88022.0,88021.0,0.54767722]
[1742924422408,0.00076,88022.0,88021.0,0.54767722]
[1742924422607,0.13563408,88029.0,88028.0,0.1135752]
[1742924422608,1e-08,88029.0,88028.0,0.1135752]
[1742924422822,0.00092001,88029.0,88028.0,0.36941849]
[1742924423112,1e-08,88029.0,88028.0,0.38393896]
[1742924423313,1e-08,88029.0,88028.0,0.53743896]
[1742924423619,0.0004,88040.0,88038.0,0.1135623]
[1742924423820,0.20367914,88039.0,88038.0,0.52024559]
[1742924424007,0.0799,88055.0,88054.0,0.1135416]
[1742924424008,0.1599,88055.0,88054.0,0.1135416]
[1742924424319,0.0765,88059.0,88054.0,0.1135416]
[1742924424320,0.47172,88063.0,88055.0,0.1135403]
[1742924424512,0.00104,88056.0,88055.0,0.4630803]
[1742924424715,0.00104,88056.0,88055.0,0.5430803]
[1742924426415,0.00104,88056.0,88055.0,0.36910867]
[1742924426816,0.23714,88056.0,88055.0,0.36910867]
[1742924427023,0.23714,88056.0,88055.0,0.48264897]
[1742924427209,0.23714,88056.0,88055.0,0.55834897]
[1742924427612,0.23814,88056.0,88055.0,0.55834897]
[1742924427907,0.3516791,88056.0,88055.0,0.29080867]
[1742924428112,0.3516791,88056.0,88047.0,0.00017037]
[1742924428113,0.1135459,88051.0,88049.0,0.0822]
[1742924428312,0.1135459,88051.0,88049.0,0.0834]
[1742924428313,0.5171,88050.0,88049.0,0.0834]
[1742924428512,0.51830001,88050.0,88049.0,0.1033591]
[1742924428707,0.51830001,88050.0,88049.0,0.2169072]
[1742924429217,0.51830001,88050.0,88049.0,0.1790591]
[1742924430314,0.51930001,88050.0,88049.0,0.2926072]
[1742924431221,0.44120001,88050.0,88049.0,0.4326072]
[1742924431412,0.36300001,88050.0,88049.0,0.4471602]
[1742924431725,0.36300001,88050.0,88049.0,0.44713294]
[1742924432111,0.36300001,88050.0,88049.0,0.4326072]
[1742924433211,0.0755,88055.0,88054.0,0.1135416]
[1742924433416,0.0755,88055.0,88054.0,0.3451016]
[1742924434012,0.0755,88055.0,88054.0,0.39346]
[1742924434221,0.1549,88055.0,88054.0,0.31256]
[1742924434418,0.5167,88055.0,88054.0,0.31256]
[1742924436823,0.5167,88055.0,88054.0,0.38866]
[1742924438317,0.5167,88055.0,88054.0,0.5022016]
[1742924444625,0.00017037,88064.0,88063.0,0.11353]
[1742924444821,0.00017037,88064.0,88063.0,0.36509]
[1742924445022,0.00017037,88064.0,88063.0,0.51869]
[1742924445221,0.0817,88069.0,88068.0,0.1135236]
[1742924445428,0.0817,88069.0,88068.0,0.3650836]
[1742924445633,0.0817,88069.0,88068.0,0.5223836]
[1742924449431,0.0817,88069.0,88068.0,0.4412836]
[1742924449630,0.0817,88069.0,88068.0,0.5169836]
[1742924450133,0.0817,88069.0,88068.0,0.53157048]
[1742924452444,0.0817,88069.0,88068.0,0.53160246]
[1742924454144,0.0817,88069.0,88068.0,0.53165239]
[1742924455645,0.0817,88069.0,88068.0,0.53170664]
[1742924456442,0.0817,88069.0,88068.0,0.53169264]
[1742924457537,0.0817,88069.0,88068.0,0.5169836]
[1742924457737,0.0817,88069.0,88068.0,0.53171256]
[1742924458652,0.0817,88069.0,88068.0,0.5317024]
[1742924460945,0.00017037,88077.0,88073.0,0.0567581]
[1742924461147,0.00017037,88077.0,88076.0,0.4743133]
[1742924461342,0.00017037,88077.0,88076.0,0.9058921]
[1742924462454,0.00017037,88077.0,88076.0,0.90576429]
[1742924462954,0.00017037,88077.0,88076.0,0.79225099]
[1742924463252,0.00017037,88077.0,88076.0,0.90576429]
[1742924464844,0.00017037,88077.0,88076.0,0.8911733]
[1742924465349,0.00017037,88077.0,88076.0,0.90582703]
[1742924466255,0.00017037,88077.0,88076.0,0.8911733]
[1742924466649,0.00017037,88077.0,88076.0,0.90583494]
[1742924467160,0.00017037,88077.0,88076.0,0.79232164]
[1742924467452,0.00017037,88077.0,88076.0,0.90583494]
[1742924467842,0.00017037,88077.0,88076.0,0.71342164]
[1742924468042,0.47448237,88077.0,88076.0,0.00156]
[1742924468245,0.1135159,88074.0,88073.0,0.20304057]
[1742924468444,0.1135159,88074.0,88073.0,0.00156]
[1742924468646,0.1135174,88073.0,88070.0,0.20304057]
[1742924468850,0.1135191,88072.0,88070.0,0.20468057]
[1742924469059,0.2727191,88072.0,88070.0,0.20468057]
[1742924469354,0.1912197,88071.0,88070.0,0.20468057]
[1742924469660,0.1912197,88071.0,88070.0,0.07988057]
[1742924469859,0.3537197,88071.0,88070.0,0.07988057]
[1742924471753,0.3537197,88071.0,88070.0,0.00164]
[1742924471957,0.1135234,88069.0,88066.0,0.00017037]
[1742924472259,0.1135234,88069.0,88066.0,0.00181037]
[1742924472260,0.3608,88067.0,88066.0,0.00181037]
[1742924472759,0.5186,88067.0,88066.0,0.02029945]
[1742924473155,0.6321249,88067.0,88066.0,0.02029945]
[1742924473454,0.6321249,88067.0,88066.0,0.00181037]
[1742924479270,0.6321249,88067.0,88066.0,0.00017037]
[1742924482161,0.1578,88067.0,88066.0,0.00017037]
[1742924482359,0.1578,88067.0,88066.0,0.29658678]
[1742924482563,8e-05,88071.0,88066.0,0.29658678]
[1742924482766,0.07818,88071.0,88067.0,0.09695641]
[1742924482961,0.0781,88071.0,88067.0,0.34366]
[1742924483267,0.1135222,88070.0,88068.0,0.0831]
[1742924483468,0.1135222,88070.0,88068.0,0.31466]
[1742924483469,0.0765,88070.0,88068.0,0.31466]
[1742924483665,0.0765,88070.0,88069.0,0.0821]
[1742924483870,0.113521,88070.0,88069.0,0.08366]
[1742924484071,0.113521,88070.0,88069.0,0.16676]
[1742924484265,0.268121,88070.0,88069.0,0.16676]
[1742924487767,0.1546,88070.0,88069.0,0.16676]
[1742924488159,0.268121,88070.0,88069.0,0.16676]
[1742924488562,0.268121,88070.0,88069.0,0.18163346]
[1742924489977,0.1546,88070.0,88069.0,0.18163346]
[1742924490268,0.268121,88070.0,88069.0,0.18163346]
[1742924491171,0.268121,88070.0,88069.0,0.16676]
[1742924491372,0.268121,88070.0,88069.0,0.18164522]
[1742924492170,0.1546,88070.0,88069.0,0.18164522]
[1742924496476,0.268121,88070.0,88069.0,0.18164522]
[1742924497077,0.268121,88070.0,88069.0,0.18159248]
[1742924497672,0.268121,88070.0,88069.0,0.18160963]
[1742924498774,0.1546,88070.0,88069.0,0.16676]
[1742924499074,0.268121,88070.0,88069.0,0.16676]
[1742924500374,0.268121,88070.0,88069.0,0.18161001]
[1742924503667,0.268121,88070.0,88069.0,0.1816347]
[1742924504068,0.628921,88070.0,88069.0,0.16676]
[1742924504268,0.628921,88070.0,88069.0,0.08466]
[1742924504466,0.628921,88070.0,88069.0,0.0831]
[1742924504668,0.628921,88070.0,88069.0,0.08466]
[1742924505675,0.76463823,88070.0,88069.0,0.00156]
[1742924505981,0.1135249,88067.0,88066.0,0.00017037]
[1742924506380,0.2700249,88067.0,88066.0,0.00017037]
[1742924508481,0.28710588,88067.0,88066.0,0.00017037]
[1742924509285,0.28710588,88067.0,88063.0,0.00045422]
[1742924509286,0.1135455,88051.0,88050.0,0.2689584]
[1742924509473,0.2242655,88051.0,88050.0,0.2705184]
[1742924509884,0.3811655,88051.0,88050.0,0.2705184]
[1742924510382,0.3811655,88051.0,88050.0,0.00256]
[1742924511083,0.3811655,88051.0,88050.0,0.00356]
[1742924511686,0.39801599,88051.0,88050.0,0.00356]
[1742924512092,0.39801599,88051.0,88050.0,0.00256]
[1742924512774,0.39801599,88051.0,88050.0,0.00156]
[1742924513779,0.28729599,88051.0,88050.0,0.00156]
[1742924513982,0.3811655,88051.0,88050.0,0.00156]
[1742924514689,0.3811655,88051.0,88050.0,0.16306]
[1742924515479,0.3811655,88051.0,88050.0,0.1615]
[1742924516177,0.3811655,88051.0,88050.0,0.17784349]
[1742924517187,0.2704455,88051.0,88050.0,0.17784349]
[1742924517382,0.3811655,88051.0,88050.0,0.17940349]
[1742924517585,0.3811655,88051.0,88050.0,0.17784349]
[1742924518181,0.3811655,88051.0,88050.0,0.1615]
[1742924518491,0.1135494,88048.0,88047.0,0.01726212]
[1742924518785,0.1135494,88048.0,88047.0,0.0776143]
[1742924518990,0.2681494,88048.0,88047.0,0.0760543]
[1742924519977,0.2681494,88048.0,88047.0,0.09313455]
[1742924520180,0.3608,88053.0,88047.0,0.15313455]
[1742924520487,0.0567727,88051.0,88048.0,0.4362]
[1742924520685,0.1135481,88049.0,88048.0,0.43776]
[1742924521482,0.1887481,88049.0,88048.0,0.43776]
[1742924521795,0.1135481,88049.0,88048.0,0.43776]
[1742924522693,0.11054286,88049.0,88048.0,0.43776]
[1742924523492,0.26674286,88049.0,88048.0,0.43776]
[1742924524686,0.26674286,88049.0,88048.0,0.4522249]
[1742924525193,0.18574286,88049.0,88048.0,0.4522249]
[1742924526387,0.26434286,88049.0,88048.0,0.4522249]
[1742924528791,0.26434286,88049.0,88048.0,0.0160249]
[1742924528989,0.26434286,88049.0,88043.0,8e-05]
[1742924528990,0.1135558,88043.0,88042.0,0.00017037]
[1742924529180,0.113561,88039.0,88038.0,0.0786]
[1742924529383,0.11416101,88039.0,88038.0,0.07968]
[1742924529583,0.11416101,88039.0,88038.0,0.0786]
[1742924529791,0.33826101,88039.0,88038.0,0.0786]
[1742924533687,0.1135649,88036.0,88035.0,8e-05]
[1742924533898,0.11464491,88036.0,88035.0,0.0012]
[1742924534197,0.27334491,88036.0,88035.0,0.0012]
[1742924535000,0.27334491,88036.0,88035.0,0.0022]
[1742924535392,0.27334491,88036.0,88035.0,0.0032]
[1742924538809,0.27334491,88036.0,88035.0,0.00208]
[1742924539103,0.27334491,88036.0,88035.0,0.0788]
[1742924542209,0.00108001,88036.0,88035.0,0.0788]
[1742924542803,0.11464491,88036.0,88035.0,0.0788]
[1742924546699,0.19484491,88036.0,88035.0,0.0788]
[1742924546901,0.27134491,88036.0,88035.0,0.0788]
[1742924548701,0.35184491,88036.0,88035.0,0.0788]
[1742924549008,0.35184491,88036.0,88035.0,0.07872]
[1742924549406,0.35184491,88036.0,88035.0,0.0776]
[1742924550006,0.35184491,88036.0,88035.0,0.002]
[1742924551014,0.35184491,88036.0,88035.0,0.0801]
[1742924551497,0.35184491,88036.0,88035.0,0.09702107]
[1742924551697,0.15778001,88036.0,88035.0,0.09702107]
[1742924552408,0.08128001,88036.0,88035.0,0.22702107]
[1742924552610,0.15335785,88052.0,88048.0,0.0567743]
[1742924552806,0.11076,88083.0,88061.0,0.1135326]
[1742924553011,0.11076,88083.0,88067.0,0.1135249]
[1742924553012,0.64445394,88079.0,88067.0,0.1135249]
[1742924553203,0.0761,88078.0,88067.0,0.3650849]
[1742924553713,0.64445394,88079.0,88067.0,0.3650849]
[1742924553714,0.64445394,88079.0,88078.0,0.1135107]
[1742924553906,0.64445394,88079.0,88078.0,0.3650707]
[1742924554607,0.64445394,88079.0,88078.0,0.28565989]
[1742924554811,0.64445394,88079.0,88078.0,0.17214919]
[1742924555113,0.75796334,88079.0,88078.0,0.17214919]
[1742924555308,0.64445394,88079.0,88078.0,0.28565989]
[1742924555811,0.75796334,88079.0,88078.0,0.17214919]
[1742924556113,0.91126334,88079.0,88078.0,0.17214919]
[1742924556312,0.79775394,88079.0,88078.0,0.28565989]
[1742924556615,0.1533,88079.0,88078.0,0.28565989]
[1742924557002,0.1533,88079.0,88078.0,0.17214919]
[1742924557205,0.2668094,88079.0,88078.0,0.17214919]
[1742924558310,0.1533,88079.0,88078.0,0.17214919]
[1742924558717,0.2668094,88079.0,88078.0,0.17214919]
[1742924560306,0.1533,88079.0,88078.0,0.17214919]
[1742924560822,0.2668094,88079.0,88078.0,0.17214919]
[1742924561514,0.1533,88079.0,88078.0,0.17214919]
[1742924564715,0.2668094,88079.0,88078.0,0.17214919]
[1742924566517,0.1533,88079.0,88078.0,0.17214919]
[1742924566921,0.2668094,88079.0,88078.0,0.17214919]
[1742924567226,0.1533,88079.0,88078.0,0.17214919]
[1742924567420,0.2668094,88079.0,88078.0,0.17214919]
[1742924567626,0.2668094,88079.0,88078.0,0.09604919]
[1742924567930,0.1533,88079.0,88078.0,0.09604919]
[1742924568425,0.2668094,88079.0,88078.0,0.09604919]
[1742924569128,0.2668094,88079.0,88078.0,0.11604919]
[1742924569631,0.2668094,88079.0,88078.0,0.03834919]
[1742924571324,0.2668094,88079.0,88078.0,0.00156]
[1742924572134,0.2668094,88079.0,88078.0,0.0169092]
[1742924572332,0.2668094,88079.0,88078.0,0.00156]
[1742924578746,0.1135171,88073.0,88072.0,0.0739]
[1742924579053,0.1135171,88073.0,88072.0,0.07546]
[1742924579251,0.2624171,88073.0,88072.0,0.07546]
[1742924579455,0.2624171,88073.0,88072.0,0.0913694]
[1742924579647,0.3730971,88073.0,88072.0,0.0913694]
[1742924580353,0.3730971,88073.0,88072.0,0.00156]
[1742924580556,0.1135236,88068.0,88067.0,0.0751]
[1742924580740,0.1135236,88068.0,88067.0,0.07666]
[1742924581250,0.3741036,88068.0,88067.0,0.00156]
[1742924581450,0.1135249,88067.0,88066.0,0.0751]
[1742924581648,0.1135249,88067.0,88066.0,0.0767]
[1742924581844,0.11068,88068.0,88066.0,0.0767]
[1742924582049,0.0733,88073.0,88066.0,0.1267]
[1742924582250,0.1901118,88078.0,88072.0,0.3608]
[1742924582558,0.1328552,88079.0,88073.0,0.1592]
[1742924582559,0.113512,88077.0,88073.0,0.1592]
[1742924582858,0.1135159,88074.0,88073.0,0.16076]
[1742924583058,0.1135151,88075.0,88073.0,0.16076]
[1742924583444,0.0567565,88077.0,88073.0,0.16076]
[1742924583645,0.1135149,88075.0,88073.0,0.16076]
[1742924583842,0.0567547,88079.0,88073.0,0.16076]
[1742924584553,0.113513,88077.0,88073.0,0.16076]
[1742924584759,8e-05,88080.0,88079.0,0.1135094]
[1742924584961,0.00017037,88087.0,88079.0,0.24156]
[1742924585157,0.11367007,88087.0,88086.0,0.3608]
[1742924585348,0.11367007,88087.0,88086.0,0.36236]
[1742924585657,0.26807007,88087.0,88086.0,0.36236]
[1742924585848,0.26807007,88087.0,88086.0,0.37776348]
[1742924588759,0.26807007,88087.0,88086.0,0.01696348]
[1742924589357,0.26807007,88087.0,88086.0,0.01540348]
[1742924589552,0.1135037,88084.0,88080.0,0.0793]
[1742924589761,0.15457037,88087.0,88080.0,0.23618997]
[1742924589762,0.0567509,88085.0,88080.0,0.23618997]
[1742924589954,0.2091509,88085.0,88080.0,0.23618997]
[1742924590157,0.0567515,88084.0,88080.0,0.23618997]
[1742924590356,0.1135043,88083.0,88080.0,0.23618997]
[1742924590547,0.1896043,88083.0,88080.0,0.23618997]
[1742924590747,0.1135068,88081.0,88080.0,0.23618997]
[1742924590950,0.1135068,88081.0,88080.0,0.36651154]
[1742924591255,0.2669068,88081.0,88080.0,0.36651154]
[1742924591456,0.3432068,88081.0,88080.0,0.36651154]
[1742924594361,0.3432068,88081.0,88080.0,0.09618997]
[1742924594554,0.3432068,88081.0,88080.0,0.00156]
[1742924597955,0.4538468,88081.0,88080.0,0.00156]
[1742924598656,0.4538468,88081.0,88079.0,0.0818]
[1742924598657,0.1135081,88080.0,88079.0,0.0818]
[1742924599066,0.2754081,88080.0,88079.0,0.0818]
[1742924600755,0.2754081,88080.0,88079.0,0.3418]
[1742924600962,0.2754081,88080.0,88079.0,0.34336]
[1742924602461,0.2754081,88080.0,88079.0,0.31336]
[1742924607365,0.2754081,88080.0,88079.0,0.23156]
[1742924607663,0.1135249,88067.0,88066.0,0.20280559]
[1742924607965,0.2241649,88067.0,88066.0,0.43400559]
[1742924608268,0.30198491,88067.0,88066.0,0.43400559]
[1742924608668,0.22528491,88067.0,88066.0,0.43400559]
[1742924608870,0.22528491,88067.0,88066.0,0.51260559]
[1742924609170,0.30198491,88067.0,88066.0,0.51260559]
[1742924610369,0.38078491,88067.0,88066.0,0.3098]
[1742924614565,0.11176001,88067.0,88066.0,0.3098]
[1742924614867,0.22528491,88067.0,88066.0,0.3098]
[1742924616068,0.00112001,88067.0,88066.0,0.6706]
[1742924616262,8e-05,88068.0,88066.0,0.6706]
[1742924616468,0.00112001,88068.0,88066.0,0.6706]
[1742924616971,0.1135249,88067.0,88066.0,0.6706]
[1742924617175,0.11464491,88067.0,88066.0,0.6706]
[1742924618678,0.11464491,88067.0,88066.0,0.7469]
[1742924619072,0.00112001,88067.0,88066.0,0.7469]
[1742924619273,0.11464491,88067.0,88066.0,0.7469]
[1742924619678,0.00112001,88067.0,88066.0,0.7469]
[1742924620070,0.1135249,88067.0,88066.0,0.7469]
[1742924620280,0.1135236,88068.0,88066.0,0.7469]
[1742924620578,0.1135249,88067.0,88066.0,0.7469]
[1742924620967,0.2669249,88067.0,88066.0,0.7469]
[1742924621166,0.26804491,88067.0,88066.0,0.7469]
[1742924628589,0.26804491,88067.0,88066.0,0.592]
[1742924628885,0.26804491,88067.0,88066.0,0.6666]
[1742924631681,0.26804491,88067.0,88066.0,0.592]
[1742924637593,0.26804491,88067.0,88066.0,0.0012]
[1742924638390,0.26804491,88067.0,88066.0,0.2312]
[1742924639188,0.26804491,88067.0,88066.0,0.0012]
[1742924639786,0.0567654,88063.0,88059.0,0.01445362]
[1742924639992,0.1135339,88060.0,88059.0,0.26521362]
[1742924640194,0.1143339,88060.0,88059.0,0.26521362]
[1742924640384,0.2766339,88060.0,88059.0,0.25076]
[1742924640985,0.2766339,88060.0,88059.0,0.33146]
[1742924641795,0.2766339,88060.0,88059.0,0.41256]
[1742924641994,0.2766339,88060.0,88059.0,0.40256]
[1742924642196,0.2766339,88060.0,88059.0,0.43256]
[1742924643185,0.2766339,88060.0,88059.0,0.35146]
[1742924643394,0.6374339,88060.0,88059.0,0.08146]
[1742924643689,0.6374339,88060.0,88058.0,0.00017037]
[1742924643690,0.1135352,88059.0,88058.0,0.00017037]
[1742924643889,0.22477521,88059.0,88058.0,0.00017037]
[1742924644090,0.37957521,88059.0,88058.0,0.28017037]
[1742924644290,0.37957521,88059.0,88058.0,0.28097037]
[1742924645881,0.26893521,88059.0,88058.0,0.28097037]
[1742924646081,0.11413521,88059.0,88058.0,0.28097037]
[1742924651001,0.53098903,88078.0,88067.0,0.1135249]
[1742924651002,0.0004,88072.0,88067.0,0.1135249]
[1742924651202,0.0004,88072.0,88071.0,0.1135197]
[1742924651395,0.00104,88072.0,88071.0,0.3945197]
[1742924651590,0.0004,88072.0,88071.0,0.3945197]
[1742924652609,0.00017037,88080.0,88071.0,0.5684595]
[1742924652804,0.0004,88088.0,88083.0,0.1135043]
[1742924653001,0.23824829,88098.0,88084.0,0.0567511]
[1742924653204,0.29599079,88098.0,88093.0,0.3608]
[1742924653402,0.29599079,88098.0,88094.0,0.0807]
[1742924653403,0.1134888,88095.0,88094.0,0.0807]
[1742924653603,0.11444881,88095.0,88094.0,0.3207]
[1742924653804,0.11444881,88095.0,88094.0,0.32166]
[1742924654512,0.11444881,88095.0,88094.0,0.40226]
[1742924655410,0.11444881,88095.0,88094.0,0.4166743]
[1742924655804,0.11444881,88095.0,88094.0,0.4935743]
[1742924660014,0.11444881,88095.0,88094.0,0.00096]
[1742924660413,0.11444881,88095.0,88094.0,0.23096]
[1742924661110,0.11444881,88095.0,88094.0,0.00096]
[1742924661307,0.1134927,88092.0,88091.0,0.0758]
[1742924661611,0.5858127,88092.0,88091.0,0.00092]
[1742924661809,0.5858127,88092.0,88086.0,0.00017037]
[1742924661810,0.1134991,88087.0,88086.0,0.00017037]
[1742924662013,0.1144191,88087.0,88086.0,0.23109037]
[1742924662922,0.2694191,88087.0,88086.0,0.23109037]
[1742924663521,0.2694191,88087.0,88086.0,0.30489037]
[1742924663715,0.2694191,88087.0,88086.0,0.38299037]
[1742924665616,0.00092,88087.0,88086.0,0.74379037]
[1742924665817,0.57148,88100.0,88086.0,0.74379037]
[1742924666023,0.5724,88100.0,88091.0,0.1134935]
[1742924666223,0.1134848,88099.0,88092.0,0.2283]
[1742924666407,0.1134852,88098.0,88092.0,0.4693]
[1742924666609,0.0576627,88098.0,88092.0,0.4693]
[1742924666820,0.1134914,88093.0,88092.0,0.4693]
[1742924667126,0.1144114,88093.0,88092.0,0.4693]
[1742924668216,0.2689114,88093.0,88092.0,0.241]
[1742924668418,0.1134991,88087.0,88086.0,0.00017037]
[1742924668721,0.1134991,88087.0,88086.0,0.24017037]
[1742924668722,0.1141391,88087.0,88086.0,0.24017037]
[1742924668917,0.3473391,88087.0,88086.0,0.00109037]
[1742924669122,0.3473391,88087.0,88086.0,0.25017037]
[1742924669319,0.3473391,88087.0,88086.0,0.25109037]
[1742924669519,0.3473391,88087.0,88086.0,0.23109037]
[1742924669712,0.3473391,88087.0,88086.0,0.00109037]
[1742924669917,0.3473391,88087.0,88086.0,0.22017037]
[1742924670224,0.3473391,88087.0,88086.0,0.22109037]
[1742924672810,0.3473391,88087.0,88086.0,0.00109037]
[1742924673030,0.3473391,88087.0,88086.0,0.00017037]
[1742924673228,0.3473391,88087.0,88086.0,0.23017037]
[1742924673414,0.3473391,88087.0,88086.0,0.00109037]
[1742924673616,0.3473391,88087.0,88086.0,0.00017037]